[Event "Titled Tuesday Blitz May 4 2021"]
[White "Kopjonkin, Kirill"]
[Black "Sanchez Alvares, Kelvin Antonio"]
[WhiteFideId "24140090"]
[BlackFideId "3906680"]
[WhiteElo "2224"]
[BlackElo "2247"]
[Result "0-1"]
[Round "11"]
[TimeControl "180+1"]
[Date "2021.05.04"]
[WhiteClock "0:00:12"]
[BlackClock "0:00:10"]

1. e4 {[%clk 0:03:00]}  c5 {[%clk 0:02:58]} 2. Nf3 {[%clk 0:03:01]}  d6 {[%clk 0:02:58]} 3. d4 {[%clk 0:03:01]}  cxd4 {[%clk 0:02:59]} 4. Nxd4 {[%clk 0:03:02]}  Nf6 {[%clk 0:02:59]} 5. Nc3 {[%clk 0:03:03]}  g6 {[%clk 0:02:59]} 6. f3 {[%clk 0:03:03]}  Bg7 {[%clk 0:02:58]} 7. Be3 {[%clk 0:03:04]}  O-O {[%clk 0:02:59]} 8. Qd2 {[%clk 0:03:05]}  Nc6 {[%clk 0:03:00]} 9. O-O-O {[%clk 0:03:05]}  Nxd4 {[%clk 0:02:59]} 10. Bxd4 {[%clk 0:03:06]}  Be6 {[%clk 0:02:59]} 11. Kb1 {[%clk 0:03:06]}  Qc7 {[%clk 0:02:59]} 12. h4 {[%clk 0:03:03]}  Rfc8 {[%clk 0:02:59]} 13. g4 {[%clk 0:03:00]}  Qa5 {[%clk 0:02:58]} 14. a3 {[%clk 0:02:59]}  Rab8 {[%clk 0:02:57]} 15. Qe1 {[%clk 0:02:58]}  b5 {[%clk 0:02:52]} 16. e5 {[%clk 0:02:59]}  b4 {[%clk 0:02:47]} 17. Nb5 {[%clk 0:02:25]}  dxe5 {[%clk 0:02:38]} 18. Qxe5 {[%clk 0:02:11]}  Ne8 {[%clk 0:02:30]} 19. Qe1 {[%clk 0:02:03]}  Rxb5 {[%clk 0:02:19]} 20. Bxb5 {[%clk 0:01:58]}  Qxb5 {[%clk 0:02:19]} 21. Qxb4 {[%clk 0:01:53]}  Qxb4 {[%clk 0:02:16]} 22. axb4 {[%clk 0:01:54]}  a6 {[%clk 0:02:04]} 23. Bc5 {[%clk 0:01:50]}  Bf8 {[%clk 0:01:55]} 24. h5 {[%clk 0:01:41]}  Nd6 {[%clk 0:01:51]} 25. hxg6 {[%clk 0:01:38]}  hxg6 {[%clk 0:01:48]} 26. Bd4 {[%clk 0:01:30]}  f6 {[%clk 0:01:46]} 27. c3 {[%clk 0:01:21]}  Nb5 {[%clk 0:01:38]} 28. Bc5 {[%clk 0:01:16]}  Bb3 {[%clk 0:01:33]} 29. Rd7 {[%clk 0:01:12]}  Be6 {[%clk 0:01:27]} 30. Rd2 {[%clk 0:01:08]}  f5 {[%clk 0:01:23]} 31. g5 {[%clk 0:01:04]}  f4 {[%clk 0:01:21]} 32. Re2 {[%clk 0:00:57]}  Bc4 {[%clk 0:01:19]} 33. Ree1 {[%clk 0:00:50]}  Nd6 {[%clk 0:01:11]} 34. Rh4 {[%clk 0:00:46]}  Nb7 {[%clk 0:00:58]} 35. Rxf4 {[%clk 0:00:42]}  Bd3+ {[%clk 0:00:55]} 36. Kc1 {[%clk 0:00:40]}  Nxc5 {[%clk 0:00:56]} 37. bxc5 {[%clk 0:00:41]}  Rxc5 {[%clk 0:00:56]} 38. Re6 {[%clk 0:00:41]}  Rxg5 {[%clk 0:00:54]} 39. Rd4 {[%clk 0:00:39]}  Bh6 {[%clk 0:00:46]} 40. f4 {[%clk 0:00:32]}  Rg1+ {[%clk 0:00:43]} 41. Kd2 {[%clk 0:00:32]}  Bf5 {[%clk 0:00:42]} 42. Rxa6 {[%clk 0:00:32]}  Kf7 {[%clk 0:00:42]} 43. c4 {[%clk 0:00:25]}  Rg2+ {[%clk 0:00:09]} 44. Ke3 {[%clk 0:00:20]}  Rxb2 {[%clk 0:00:08]} 45. c5 {[%clk 0:00:18]}  Rc2 {[%clk 0:00:09]} 46. c6 {[%clk 0:00:18]}  Bg7 {[%clk 0:00:08]} 47. Rb4 {[%clk 0:00:17]}  Rc3+ {[%clk 0:00:08]} 48. Kd2 {[%clk 0:00:16]}  Rc2+ {[%clk 0:00:08]} 49. Kd1 {[%clk 0:00:16]}  Rc5 {[%clk 0:00:07]} 50. Rb7 {[%clk 0:00:16]}  Bf6 {[%clk 0:00:06]} 51. c7 {[%clk 0:00:15]}  Bc8 {[%clk 0:00:06]} 52. Rab6 {[%clk 0:00:09]}  Bxb7 {[%clk 0:00:06]} 53. Rxb7 {[%clk 0:00:10]}  Ke6 {[%clk 0:00:06]} 54. Ke2 {[%clk 0:00:10]}  Kd7 {[%clk 0:00:06]} 55. Ra7 {[%clk 0:00:10]}  Rxc7 {[%clk 0:00:06]} 56. Ra6 {[%clk 0:00:11]}  Rc6 {[%clk 0:00:06]} 57. Ra7+ {[%clk 0:00:12]}  Ke6 {[%clk 0:00:07]} 58. Kf3 {[%clk 0:00:12]}  Kf5 {[%clk 0:00:07]} 59. Ra5+ {[%clk 0:00:13]}  e5 {[%clk 0:00:07]} 60. fxe5 {[%clk 0:00:11]}  Bxe5 {[%clk 0:00:08]} 61. Ke3 {[%clk 0:00:12]}  Rc3+ {[%clk 0:00:08]} 62. Kd2 {[%clk 0:00:12]}  Rh3 {[%clk 0:00:09]} 63. Ke2 {[%clk 0:00:12]}  g5 {[%clk 0:00:09]} 64. Kf1 {[%clk 0:00:13]}  g4 {[%clk 0:00:10]} 65. Kg2 {[%clk 0:00:14]}  Rh2+ {[%clk 0:00:10]} 66. Kg1 {[%clk 0:00:14]}  Rb2 {[%clk 0:00:11]} 67. Rb5 {[%clk 0:00:14]}  g3 {[%clk 0:00:11]} 68. Rd5 {[%clk 0:00:12]}  Ke4 {[%clk 0:00:11]} 69. Ra5 {[%clk 0:00:12]}  Bd4+ {[%clk 0:00:11]} 70. Kh1 {[%clk 0:00:12]}  g2+ {[%clk 0:00:10]} 0-1


[Site "https://www.chess.com"]

[Event "Titled Tuesday Blitz May 4 2021"]
[White "Korchmar, Vasiliy"]
[Black "Brunner, Nicolas"]
[WhiteFideId "24131750"]
[BlackFideId "620246"]
[WhiteElo "2370"]
[BlackElo "2372"]
[Result "1-0"]
[Round "11"]
[TimeControl "180+1"]
[Date "2021.05.04"]
[WhiteClock "0:01:26"]
[BlackClock "0:00:28"]

1. d4 {[%clk 0:03:00]}  d5 {[%clk 0:02:59]} 2. Nf3 {[%clk 0:03:01]}  Nf6 {[%clk 0:02:59]} 3. Bf4 {[%clk 0:03:01]}  e6 {[%clk 0:02:58]} 4. e3 {[%clk 0:03:02]}  c5 {[%clk 0:02:57]} 5. Nbd2 {[%clk 0:03:01]}  Nc6 {[%clk 0:02:57]} 6. c3 {[%clk 0:03:02]}  Bd6 {[%clk 0:02:57]} 7. Bg3 {[%clk 0:03:02]}  O-O {[%clk 0:02:57]} 8. Bd3 {[%clk 0:03:02]}  b6 {[%clk 0:02:56]} 9. Qe2 {[%clk 0:03:03]}  Bb7 {[%clk 0:02:30]} 10. Rd1 {[%clk 0:03:01]}  h6 {[%clk 0:02:27]} 11. dxc5 {[%clk 0:02:39]}  bxc5 {[%clk 0:02:22]} 12. e4 {[%clk 0:02:40]}  Bxg3 {[%clk 0:01:59]} 13. hxg3 {[%clk 0:02:39]}  d4 {[%clk 0:01:41]} 14. e5 {[%clk 0:02:35]}  Nd5 {[%clk 0:01:16]} 15. Qe4 {[%clk 0:02:35]}  f5 {[%clk 0:01:11]} 16. exf6 {[%clk 0:02:36]}  Qxf6 {[%clk 0:01:11]} 17. Nc4 {[%clk 0:02:07]}  dxc3 {[%clk 0:01:04]} 18. Nd6 {[%clk 0:02:05]}  Rf7 {[%clk 0:00:41]} 19. Qh7+ {[%clk 0:01:24]}  Kf8 {[%clk 0:00:41]} 20. Nxb7 {[%clk 0:01:25]}  Rxb7 {[%clk 0:00:32]} 21. Qh8+ {[%clk 0:01:25]}  Kf7 {[%clk 0:00:28]} 22. Qxa8 {[%clk 0:01:26]} 1-0


[Site "https://www.chess.com"]

[Event "Titled Tuesday Blitz May 4 2021"]
[White "Korkmaz, Necmettin"]
[Black "Poormosavi, Seyed Kian"]
[WhiteFideId "6303285"]
[BlackFideId "12585807"]
[WhiteElo "2094"]
[BlackElo "2134"]
[Result "1-0"]
[Round "11"]
[TimeControl "180+1"]
[Date "2021.05.04"]
[WhiteClock "0:01:08"]
[BlackClock "0:00:13"]

1. e4 {[%clk 0:03:00]}  c5 {[%clk 0:02:59]} 2. Nf3 {[%clk 0:03:00]}  Nc6 {[%clk 0:02:58]} 3. d4 {[%clk 0:03:00]}  cxd4 {[%clk 0:02:59]} 4. Nxd4 {[%clk 0:03:01]}  g6 {[%clk 0:03:00]} 5. c4 {[%clk 0:02:57]}  Bg7 {[%clk 0:03:00]} 6. Be3 {[%clk 0:02:57]}  Nf6 {[%clk 0:02:58]} 7. Nc3 {[%clk 0:02:57]}  O-O {[%clk 0:02:59]} 8. Be2 {[%clk 0:02:54]}  d6 {[%clk 0:02:52]} 9. O-O {[%clk 0:02:53]}  Bd7 {[%clk 0:02:47]} 10. Rc1 {[%clk 0:02:52]}  Nxd4 {[%clk 0:02:47]} 11. Bxd4 {[%clk 0:02:51]}  Bc6 {[%clk 0:02:48]} 12. f3 {[%clk 0:02:51]}  Nd7 {[%clk 0:02:48]} 13. Be3 {[%clk 0:02:49]}  a5 {[%clk 0:02:47]} 14. b3 {[%clk 0:02:49]}  Nc5 {[%clk 0:02:46]} 15. Qd2 {[%clk 0:02:49]}  Be5 {[%clk 0:02:36]} 16. Rfd1 {[%clk 0:02:42]}  e6 {[%clk 0:02:33]} 17. Nb5 {[%clk 0:02:38]}  Qh4 {[%clk 0:02:21]} 18. g3 {[%clk 0:02:26]}  Bxg3 {[%clk 0:02:17]} 19. hxg3 {[%clk 0:02:26]}  Qxg3+ {[%clk 0:02:17]} 20. Kf1 {[%clk 0:02:27]}  Rad8 {[%clk 0:01:50]} 21. Nxd6 {[%clk 0:02:19]}  Qh3+ {[%clk 0:01:27]} 22. Ke1 {[%clk 0:02:17]}  Nxe4 {[%clk 0:01:23]} 23. fxe4 {[%clk 0:02:14]}  Bxe4 {[%clk 0:01:23]} 24. Bf1 {[%clk 0:02:11]}  Qh1 {[%clk 0:01:10]} 25. Bf2 {[%clk 0:02:05]}  Rd7 {[%clk 0:00:54]} 26. c5 {[%clk 0:01:59]}  Bf3 {[%clk 0:00:50]} 27. Qe3 {[%clk 0:01:45]}  b6 {[%clk 0:00:21]} 28. Rd3 {[%clk 0:01:25]}  Bg2 {[%clk 0:00:17]} 29. Ke2 {[%clk 0:01:24]}  Qh5+ {[%clk 0:00:16]} 30. Kd2 {[%clk 0:01:22]}  Bxf1 {[%clk 0:00:16]} 31. Rxf1 {[%clk 0:01:21]}  bxc5 {[%clk 0:00:17]} 32. Qxc5 {[%clk 0:01:20]}  Qh6+ {[%clk 0:00:17]} 33. Qe3 {[%clk 0:01:18]}  Qh2 {[%clk 0:00:16]} 34. Qg3 {[%clk 0:01:15]}  Qh5 {[%clk 0:00:14]} 35. Bd4 {[%clk 0:01:10]}  Rfd8 {[%clk 0:00:13]} 36. Qe5 {[%clk 0:01:08]}  Rxd6 {[%clk 0:00:13]} 37. Qg7# {[%clk 0:01:08]} 1-0


[Site "https://www.chess.com"]

[Event "Titled Tuesday Blitz May 4 2021"]
[White "Kretov, Evgenij"]
[Black "Visakh N R"]
[WhiteFideId "4167821"]
[BlackFideId "25012223"]
[WhiteElo "2381"]
[BlackElo "2428"]
[Result "1/2-1/2"]
[Round "11"]
[TimeControl "180+1"]
[Date "2021.05.04"]
[WhiteClock "0:00:16"]
[BlackClock "0:00:07"]

1. d4 {[%clk 0:03:00]}  Nf6 {[%clk 0:02:59]} 2. c4 {[%clk 0:03:01]}  g6 {[%clk 0:02:58]} 3. Nc3 {[%clk 0:03:01]}  d5 {[%clk 0:02:59]} 4. cxd5 {[%clk 0:03:01]}  Nxd5 {[%clk 0:02:59]} 5. Bd2 {[%clk 0:03:01]}  Bg7 {[%clk 0:02:57]} 6. e4 {[%clk 0:03:01]}  Nb6 {[%clk 0:02:51]} 7. Be3 {[%clk 0:03:01]}  O-O {[%clk 0:02:50]} 8. h3 {[%clk 0:03:01]}  f5 {[%clk 0:02:36]} 9. exf5 {[%clk 0:02:59]}  Bxf5 {[%clk 0:02:36]} 10. Nf3 {[%clk 0:02:59]}  Nc6 {[%clk 0:02:36]} 11. g4 {[%clk 0:02:53]}  Bc8 {[%clk 0:02:26]} 12. Bg2 {[%clk 0:02:46]}  e5 {[%clk 0:02:11]} 13. d5 {[%clk 0:02:22]}  Nd4 {[%clk 0:01:08]} 14. Nxd4 {[%clk 0:02:14]}  exd4 {[%clk 0:01:08]} 15. Bxd4 {[%clk 0:02:13]}  Qe7+ {[%clk 0:01:08]} 16. Kf1 {[%clk 0:02:09]}  Bd7 {[%clk 0:01:05]} 17. Bxg7 {[%clk 0:02:02]}  Qxg7 {[%clk 0:01:06]} 18. Bf3 {[%clk 0:01:49]}  Rf7 {[%clk 0:01:01]} 19. Rh2 {[%clk 0:01:39]}  Raf8 {[%clk 0:00:50]} 20. Be4 {[%clk 0:01:34]}  Nc4 {[%clk 0:00:50]} 21. Qe2 {[%clk 0:01:33]}  Qd4 {[%clk 0:00:48]} 22. Kg1 {[%clk 0:01:10]}  Nd6 {[%clk 0:00:42]} 23. Rd1 {[%clk 0:01:05]}  Qe5 {[%clk 0:00:37]} 24. Bd3 {[%clk 0:01:00]}  Qxh2+ {[%clk 0:00:32]} 25. Kxh2 {[%clk 0:00:58]}  Rxf2+ {[%clk 0:00:33]} 26. Kg3 {[%clk 0:00:56]}  Rxe2 {[%clk 0:00:34]} 27. Bxe2 {[%clk 0:00:51]}  a5 {[%clk 0:00:31]} 28. Rf1 {[%clk 0:00:50]}  Re8 {[%clk 0:00:29]} 29. Kf4 {[%clk 0:00:48]}  b5 {[%clk 0:00:28]} 30. Bd3 {[%clk 0:00:44]}  b4 {[%clk 0:00:27]} 31. Ne2 {[%clk 0:00:44]}  Nf7 {[%clk 0:00:22]} 32. Nd4 {[%clk 0:00:35]}  Ne5 {[%clk 0:00:17]} 33. Ba6 {[%clk 0:00:33]}  Kg7 {[%clk 0:00:13]} 34. g5 {[%clk 0:00:32]}  Nf7 {[%clk 0:00:12]} 35. h4 {[%clk 0:00:30]}  Nd6 {[%clk 0:00:12]} 36. Bd3 {[%clk 0:00:29]}  Bh3 {[%clk 0:00:09]} 37. Rf2 {[%clk 0:00:25]}  Bd7 {[%clk 0:00:09]} 38. Re2 {[%clk 0:00:23]}  Rf8+ {[%clk 0:00:09]} 39. Kg3 {[%clk 0:00:24]}  Rf7 {[%clk 0:00:08]} 40. Ne6+ {[%clk 0:00:23]}  Bxe6 {[%clk 0:00:09]} 41. dxe6 {[%clk 0:00:23]}  Re7 {[%clk 0:00:08]} 42. Kf4 {[%clk 0:00:23]}  c6 {[%clk 0:00:06]} 43. Ke5 {[%clk 0:00:23]}  Nf7+ {[%clk 0:00:06]} 44. Kd4 {[%clk 0:00:23]}  Nd8 {[%clk 0:00:06]} 45. Bc4 {[%clk 0:00:23]}  Nb7 {[%clk 0:00:06]} 46. Ke5 {[%clk 0:00:22]}  Kf8 {[%clk 0:00:06]} 47. Rf2+ {[%clk 0:00:19]}  Ke8 {[%clk 0:00:06]} 48. h5 {[%clk 0:00:18]}  gxh5 {[%clk 0:00:05]} 49. Rh2 {[%clk 0:00:19]}  Rg7 {[%clk 0:00:05]} 50. Rxh5 {[%clk 0:00:19]}  Ke7 {[%clk 0:00:06]} 51. b3 {[%clk 0:00:15]}  Nd6 {[%clk 0:00:06]} 52. Bd3 {[%clk 0:00:14]}  c5 {[%clk 0:00:05]} 53. Rxh7 {[%clk 0:00:14]}  Rxh7 {[%clk 0:00:04]} 54. Bxh7 {[%clk 0:00:14]}  c4 {[%clk 0:00:05]} 55. Bc2 {[%clk 0:00:13]}  cxb3 {[%clk 0:00:03]} 56. axb3 {[%clk 0:00:13]}  Ne8 {[%clk 0:00:04]} 57. g6 {[%clk 0:00:13]}  Ng7 {[%clk 0:00:04]} 58. Kd5 {[%clk 0:00:14]}  Nxe6 {[%clk 0:00:04]} 59. Kc4 {[%clk 0:00:14]}  Kf6 {[%clk 0:00:04]} 60. Bb1 {[%clk 0:00:14]}  Nc7 {[%clk 0:00:04]} 61. Kc5 {[%clk 0:00:14]}  Ne6+ {[%clk 0:00:04]} 62. Kb6 {[%clk 0:00:14]}  Nd4 {[%clk 0:00:04]} 63. Kxa5 {[%clk 0:00:14]}  Nxb3+ {[%clk 0:00:05]} 64. Kxb4 {[%clk 0:00:15]}  Nd4 {[%clk 0:00:05]} 65. Bd3 {[%clk 0:00:15]}  Ne6 {[%clk 0:00:06]} 66. Kc4 {[%clk 0:00:15]}  Nf4 {[%clk 0:00:06]} 67. Kc3 {[%clk 0:00:15]}  Nxd3 {[%clk 0:00:06]} 68. Kxd3 {[%clk 0:00:16]}  Kxg6 {[%clk 0:00:07]} 1/2-1/2


[Site "https://www.chess.com"]

[Event "Titled Tuesday Blitz May 4 2021"]
[White "Krivonosov, Oleg"]
[Black "Ravi, Thandalam Shanmugam"]
[WhiteFideId "11600349"]
[BlackFideId "5000238"]
[WhiteElo "2469"]
[BlackElo "2215"]
[Result "1-0"]
[Round "11"]
[TimeControl "180+1"]
[Date "2021.05.04"]
[WhiteClock "0:01:45"]
[BlackClock "0:00:24"]

1. Nf3 {[%clk 0:03:00]}  Nf6 {[%clk 0:02:58]} 2. c4 {[%clk 0:03:00]}  e6 {[%clk 0:02:56]} 3. g3 {[%clk 0:02:59]}  b6 {[%clk 0:02:54]} 4. Bg2 {[%clk 0:02:58]}  Bb7 {[%clk 0:02:54]} 5. O-O {[%clk 0:02:57]}  Be7 {[%clk 0:02:54]} 6. Nc3 {[%clk 0:02:56]}  O-O {[%clk 0:02:54]} 7. d4 {[%clk 0:02:56]}  d5 {[%clk 0:02:53]} 8. Ne5 {[%clk 0:02:56]}  c5 {[%clk 0:02:50]} 9. cxd5 {[%clk 0:02:53]}  exd5 {[%clk 0:02:47]} 10. dxc5 {[%clk 0:02:47]}  bxc5 {[%clk 0:02:45]} 11. Bg5 {[%clk 0:02:47]}  Qd6 {[%clk 0:02:42]} 12. Nc4 {[%clk 0:02:36]}  Qe6 {[%clk 0:02:12]} 13. Bxf6 {[%clk 0:02:34]}  Bxf6 {[%clk 0:02:11]} 14. Nxd5 {[%clk 0:02:34]}  Bc6 {[%clk 0:01:41]} 15. Nxf6+ {[%clk 0:02:21]}  Qxf6 {[%clk 0:01:42]} 16. Qd6 {[%clk 0:02:18]}  Qxd6 {[%clk 0:01:37]} 17. Nxd6 {[%clk 0:02:18]}  Bxg2 {[%clk 0:01:35]} 18. Kxg2 {[%clk 0:02:18]}  Nd7 {[%clk 0:01:30]} 19. Rfd1 {[%clk 0:02:16]}  Rab8 {[%clk 0:01:30]} 20. b3 {[%clk 0:02:15]}  Ne5 {[%clk 0:01:25]} 21. Rd5 {[%clk 0:02:11]}  Rfd8 {[%clk 0:01:00]} 22. Rxe5 {[%clk 0:02:09]}  Rxd6 {[%clk 0:00:59]} 23. Rxc5 {[%clk 0:02:10]}  Rd2 {[%clk 0:01:00]} 24. Rac1 {[%clk 0:02:10]}  g6 {[%clk 0:00:57]} 25. R1c2 {[%clk 0:02:10]}  Rxc2 {[%clk 0:00:54]} 26. Rxc2 {[%clk 0:02:09]}  Rb7 {[%clk 0:00:55]} 27. Rc6 {[%clk 0:02:07]}  Kg7 {[%clk 0:00:53]} 28. Ra6 {[%clk 0:02:06]}  f6 {[%clk 0:00:52]} 29. e3 {[%clk 0:02:05]}  g5 {[%clk 0:00:52]} 30. g4 {[%clk 0:02:05]}  Kg6 {[%clk 0:00:51]} 31. Kg3 {[%clk 0:02:06]}  Rf7 {[%clk 0:00:49]} 32. h4 {[%clk 0:02:05]}  h5 {[%clk 0:00:48]} 33. hxg5 {[%clk 0:02:04]}  Kxg5 {[%clk 0:00:41]} 34. Ra5+ {[%clk 0:02:02]}  Kg6 {[%clk 0:00:41]} 35. Rxh5 {[%clk 0:02:00]}  Rc7 {[%clk 0:00:38]} 36. Ra5 {[%clk 0:02:00]}  Rd7 {[%clk 0:00:38]} 37. f4 {[%clk 0:01:59]}  Re7 {[%clk 0:00:37]} 38. Kf3 {[%clk 0:01:59]}  Kf7 {[%clk 0:00:37]} 39. Ra6 {[%clk 0:01:59]}  Rd7 {[%clk 0:00:36]} 40. b4 {[%clk 0:01:58]}  Rb7 {[%clk 0:00:36]} 41. a3 {[%clk 0:01:57]}  Ke7 {[%clk 0:00:36]} 42. f5 {[%clk 0:01:56]}  Kf7 {[%clk 0:00:36]} 43. Kf4 {[%clk 0:01:56]}  Re7 {[%clk 0:00:35]} 44. e4 {[%clk 0:01:57]}  Kg7 {[%clk 0:00:32]} 45. b5 {[%clk 0:01:55]}  Rb7 {[%clk 0:00:32]} 46. a4 {[%clk 0:01:55]}  Kf7 {[%clk 0:00:32]} 47. g5 {[%clk 0:01:54]}  fxg5+ {[%clk 0:00:32]} 48. Kxg5 {[%clk 0:01:54]}  Re7 {[%clk 0:00:31]} 49. Kf4 {[%clk 0:01:54]}  Rb7 {[%clk 0:00:31]} 50. e5 {[%clk 0:01:54]}  Ke7 {[%clk 0:00:31]} 51. Rh6 {[%clk 0:01:51]}  Kf8 {[%clk 0:00:27]} 52. f6 {[%clk 0:01:47]}  Rc7 {[%clk 0:00:25]} 53. Rh8+ {[%clk 0:01:46]}  Kf7 {[%clk 0:00:24]} 54. Rh7+ {[%clk 0:01:45]} 1-0


[Site "https://www.chess.com"]

[Event "Titled Tuesday Blitz May 4 2021"]
[White "Krzywda, Andrzej"]
[Black "Efremov, Vladislav"]
[WhiteFideId "1114565"]
[BlackFideId "44159935"]
[WhiteElo "2100"]
[BlackElo "2022"]
[Result "0-1"]
[Round "11"]
[TimeControl "180+1"]
[Date "2021.05.04"]
[WhiteClock "0:00:09"]
[BlackClock "0:00:05"]

1. e4 {[%clk 0:03:00]}  c5 {[%clk 0:02:58]} 2. Nc3 {[%clk 0:03:00]}  e6 {[%clk 0:02:57]} 3. Nge2 {[%clk 0:02:55]}  Nc6 {[%clk 0:02:54]} 4. g3 {[%clk 0:02:52]}  Nf6 {[%clk 0:02:51]} 5. Bg2 {[%clk 0:02:51]}  Be7 {[%clk 0:02:49]} 6. O-O {[%clk 0:02:49]}  O-O {[%clk 0:02:48]} 7. d3 {[%clk 0:02:40]}  d5 {[%clk 0:02:42]} 8. exd5 {[%clk 0:02:40]}  Nxd5 {[%clk 0:02:29]} 9. Nxd5 {[%clk 0:02:39]}  exd5 {[%clk 0:02:30]} 10. Nf4 {[%clk 0:02:39]}  d4 {[%clk 0:02:28]} 11. Re1 {[%clk 0:02:19]}  h6 {[%clk 0:01:45]} 12. Bd2 {[%clk 0:02:04]}  Bf5 {[%clk 0:01:23]} 13. Bxc6 {[%clk 0:01:38]}  bxc6 {[%clk 0:01:22]} 14. Qf3 {[%clk 0:01:38]}  Rc8 {[%clk 0:01:08]} 15. g4 {[%clk 0:01:20]}  Bh7 {[%clk 0:01:06]} 16. Nh5 {[%clk 0:01:15]}  Bg5 {[%clk 0:00:59]} 17. Bxg5 {[%clk 0:01:13]}  Qxg5 {[%clk 0:01:00]} 18. Re2 {[%clk 0:01:09]}  f5 {[%clk 0:00:54]} 19. h3 {[%clk 0:00:52]}  f4 {[%clk 0:00:51]} 20. Rae1 {[%clk 0:00:35]}  g6 {[%clk 0:00:37]} 21. h4 {[%clk 0:00:13]}  Qxh4 {[%clk 0:00:34]} 22. Nxf4 {[%clk 0:00:13]}  Qf6 {[%clk 0:00:34]} 23. Re4 {[%clk 0:00:05]}  g5 {[%clk 0:00:33]} 24. Re6 {[%clk 0:00:03]}  Qxf4 {[%clk 0:00:31]} 25. Qg2 {[%clk 0:00:03]}  Kg7 {[%clk 0:00:25]} 26. Re7+ {[%clk 0:00:03]}  Rf7 {[%clk 0:00:25]} 27. Rxf7+ {[%clk 0:00:03]}  Qxf7 {[%clk 0:00:26]} 28. Re5 {[%clk 0:00:02]}  Rf8 {[%clk 0:00:21]} 29. Rxc5 {[%clk 0:00:01]}  Qe7 {[%clk 0:00:12]} 30. Rxc6 {[%clk 0:00:01]}  Qe1+ {[%clk 0:00:11]} 31. Kh2 {[%clk 0:00:02]}  Rxf2 {[%clk 0:00:11]} 32. Rc7+ {[%clk 0:00:02]}  Kg6 {[%clk 0:00:10]} 33. Rc6+ {[%clk 0:00:02]}  Kg7 {[%clk 0:00:10]} 34. Rc7+ {[%clk 0:00:03]}  Kf8 {[%clk 0:00:10]} 35. Rc8+ {[%clk 0:00:03]}  Ke7 {[%clk 0:00:09]} 36. Rc7+ {[%clk 0:00:02]}  Kd8 {[%clk 0:00:10]} 37. Rxh7 {[%clk 0:00:02]}  Rxg2+ {[%clk 0:00:10]} 38. Kxg2 {[%clk 0:00:03]}  Qe2+ {[%clk 0:00:10]} 39. Kg3 {[%clk 0:00:04]}  Qe3+ {[%clk 0:00:10]} 40. Kg2 {[%clk 0:00:02]}  Qd2+ {[%clk 0:00:08]} 41. Kg3 {[%clk 0:00:03]}  Qf4+ {[%clk 0:00:08]} 42. Kh3 {[%clk 0:00:02]}  Qf3+ {[%clk 0:00:08]} 43. Kh2 {[%clk 0:00:03]}  Qxg4 {[%clk 0:00:08]} 44. Rxh6 {[%clk 0:00:03]}  Qe2+ {[%clk 0:00:08]} 45. Kg3 {[%clk 0:00:03]}  Qxc2 {[%clk 0:00:08]} 46. Rd6+ {[%clk 0:00:03]}  Kc7 {[%clk 0:00:06]} 47. Rxd4 {[%clk 0:00:04]}  Qxb2 {[%clk 0:00:06]} 48. Rc4+ {[%clk 0:00:04]}  Kb6 {[%clk 0:00:06]} 49. Rg4 {[%clk 0:00:05]}  Qxa2 {[%clk 0:00:06]} 50. Rxg5 {[%clk 0:00:05]}  a5 {[%clk 0:00:06]} 51. Rg6+ {[%clk 0:00:06]}  Kb5 {[%clk 0:00:06]} 52. Rg8 {[%clk 0:00:06]}  a4 {[%clk 0:00:06]} 53. Rb8+ {[%clk 0:00:06]}  Kc5 {[%clk 0:00:07]} 54. Kf3 {[%clk 0:00:07]}  Kd4 {[%clk 0:00:07]} 55. Rd8+ {[%clk 0:00:06]}  Kc3 {[%clk 0:00:06]} 56. Ke3 {[%clk 0:00:07]}  Qe6+ {[%clk 0:00:05]} 57. Kf2 {[%clk 0:00:07]}  Qf6+ {[%clk 0:00:05]} 58. Ke3 {[%clk 0:00:07]}  Qxd8 {[%clk 0:00:06]} 59. Ke4 {[%clk 0:00:07]}  a3 {[%clk 0:00:07]} 60. Ke5 {[%clk 0:00:08]}  a2 {[%clk 0:00:08]} 61. d4 {[%clk 0:00:09]}  a1=Q {[%clk 0:00:08]} 62. d5 {[%clk 0:00:10]}  Qf6+ {[%clk 0:00:07]} 63. Ke4 {[%clk 0:00:09]}  Qe1# {[%clk 0:00:05]} 0-1


[Site "https://www.chess.com"]